bitfinex/quotes_BTCUSD_20260127
["timestamp","ask_amount","ask_price","bid_price","bid_amount"]
[1769538634020,0.20432883,87968.0,87942.0,0.22171411]
[1769538634232,0.20432883,87968.0,87950.0,0.27190425]
[1769538634233,0.03,87967.0,87950.0,0.27190425]
[1769538634439,0.03,87967.0,87953.0,0.22171411]
[1769538634643,0.03,87967.0,87954.0,0.22171411]
[1769538635055,0.0002247,87973.0,87954.0,0.22171411]
[1769538635056,0.03,87966.0,87954.0,0.22171411]
[1769538636300,0.02294178,87972.0,87954.0,0.22171411]
[1769538636512,0.02294178,87972.0,87956.0,0.24559436]
[1769538636927,0.20432883,87978.0,87951.0,0.04091676]
[1769538636928,0.20432883,87978.0,87967.0,0.04091676]
[1769538637136,0.02294178,87986.0,87969.0,0.22171411]
[1769538637385,0.03,87993.0,87971.0,0.22171411]
[1769538637584,0.03,87989.0,87971.0,0.22171411]
[1769538640108,0.02294178,87990.0,87971.0,0.22171411]
[1769538640109,0.03,87985.0,87971.0,0.22171411]
[1769538640281,0.05294178,87985.0,87972.0,0.04091676]
[1769538640692,0.03,87983.0,87965.0,0.02388025]
[1769538640912,0.05294178,87983.0,87966.0,0.22171411]
[1769538641134,0.05294178,87983.0,87967.0,0.24627355]
[1769538641322,0.05294178,87983.0,87967.0,0.22171411]
[1769538641680,0.03,87982.0,87967.0,0.22171411]
[1769538641901,0.03,87976.0,87955.0,0.22171411]
[1769538642103,0.25727061,87976.0,87957.0,0.22171411]
[1769538642305,0.03,87976.0,87957.0,0.22171411]
[1769538642544,0.0002247,87987.0,87957.0,0.22171411]
[1769538642545,0.03,87974.0,87957.0,0.22171411]
[1769538642694,0.0002247,87987.0,87960.0,0.02388025]
[1769538642898,0.0002247,87987.0,87972.0,0.22171411]
[1769538643341,0.02316648,87987.0,87972.0,0.22171411]
[1769538643544,0.03,87986.0,87972.0,0.22171411]
[1769538643753,0.05294178,87986.0,87972.0,0.22171411]
[1769538643899,0.03,87986.0,87972.0,0.22171411]
[1769538644124,0.03,87984.0,87972.0,0.22171411]
[1769538644317,0.03,87984.0,87966.0,0.02388025]
[1769538644565,0.03,87984.0,87967.0,0.22171411]
[1769538644770,0.05294178,87984.0,87967.0,0.22171411]
[1769538645431,0.03,87981.0,87961.0,0.01027441]
[1769538645639,0.05294178,87979.0,87959.0,0.22171411]
[1769538645777,0.05294178,87979.0,87961.0,0.22171411]
[1769538645988,0.01294178,87979.0,87961.0,0.22171411]
[1769538646208,0.20432883,87979.0,87961.0,0.22171411]
[1769538646422,0.20432883,87979.0,87944.0,0.05685398]
[1769538646423,0.20432883,87972.0,87947.0,0.02388025]
[1769538646638,0.33993591,87980.0,87936.0,0.06121286]
[1769538646639,0.03,87963.0,87940.0,0.22171411]
[1769538646847,0.03,87959.0,87940.0,0.24559436]
[1769538647079,0.05294178,87957.0,87940.0,0.24559436]
[1769538647519,0.05294178,87957.0,87940.0,0.22171411]
[1769538647520,0.02294178,87956.0,87940.0,0.22171411]
[1769538647729,0.33993591,87970.0,87939.0,0.0002247]
[1769538647730,0.05294178,87953.0,87939.0,0.0002247]
[1769538647944,0.03,87951.0,87939.0,0.0002247]
[1769538648966,0.05294178,87949.0,87939.0,0.0002247]
[1769538650086,0.03,87948.0,87940.0,0.22171411]
[1769538651157,0.03,87955.0,87940.0,0.22171411]
[1769538651333,0.05294178,87955.0,87940.0,0.22171411]
[1769538652117,0.05294178,87955.0,87942.0,0.22171411]
[1769538652321,0.03,87962.0,87942.0,0.22171411]
[1769538652547,0.03,87962.0,87941.0,0.04091676]
[1769538652548,0.03,87960.0,87944.0,0.22171411]
[1769538652760,0.02294178,87970.0,87945.0,0.22171411]
[1769538652761,0.02210178,87970.0,87945.0,0.22171411]
[1769538652958,0.02210178,87970.0,87948.0,0.02388025]
[1769538653160,0.02210178,87970.0,87950.0,0.02388025]
[1769538653478,0.03,87969.0,87951.0,0.24559436]
[1769538653807,0.03,87969.0,87953.0,0.22171411]
[1769538655169,0.0568291,87984.0,87942.0,0.10064895]
[1769538655170,0.03,87985.0,87957.0,0.02316246]
[1769538655369,0.06213076,88000.0,87961.0,0.02316246]
[1769538655370,0.05466834,87983.0,87961.0,0.02316246]
[1769538655608,0.05466834,87983.0,87964.0,0.19070753]
[1769538655760,0.05466834,87983.0,87966.0,0.21386999]
[1769538655962,0.05466834,87983.0,87968.0,0.19070753]
[1769538656167,0.05466834,87983.0,87968.0,0.18070753]
[1769538658234,0.02466834,87983.0,87968.0,0.18070753]
[1769538658435,0.03,87981.0,87968.0,0.18070753]
[1769538658644,0.02372616,87986.0,87968.0,0.18070753]
[1769538659068,0.19425974,87987.0,87973.0,0.19070753]
[1769538659069,0.0002247,87987.0,87973.0,0.19070753]
[1769538659297,0.0002247,87987.0,87975.0,0.19070753]
[1769538660276,0.0002247,87987.0,87974.0,0.02316246]
[1769538660483,0.03,87989.0,87976.0,0.02316246]
[1769538660688,0.0002247,88000.0,87980.0,0.02316246]
[1769538660858,0.0002247,88000.0,87981.0,0.00640792]
[1769538661060,0.02466834,87996.0,87972.0,0.02316246]
[1769538661297,0.03,87993.0,87974.0,0.02316246]
[1769538661498,0.03,87993.0,87963.0,0.04091676]
[1769538661499,0.03,87993.0,87980.0,0.19070753]
[1769538661699,0.03,87993.0,87984.0,0.02316246]
[1769538661909,0.03,87993.0,87985.0,0.19070753]
[1769538662105,0.03,87993.0,87984.0,0.02316246]
[1769538662341,0.19403504,87999.0,87979.0,0.19070753]
[1769538662342,0.03,87992.0,87979.0,0.19070753]
[1769538663420,0.03,87994.0,87979.0,0.19070753]
[1769538664417,0.03,87994.0,87977.0,0.02316246]
[1769538664797,0.03,87994.0,87977.0,0.21386999]
[1769538665763,0.03,87993.0,87977.0,0.21386999]
[1769538666374,0.03,87993.0,87979.0,0.19070753]
[1769538666880,0.03,87992.0,87981.0,0.02316246]
[1769538667077,0.03,87992.0,87981.0,0.21386999]
[1769538667478,0.03,87992.0,87981.0,0.19070753]
[1769538667714,0.0002247,88000.0,87985.0,0.19070753]
[1769538667915,0.0002247,88000.0,87987.0,0.21386999]
[1769538669541,0.0002247,88000.0,87988.0,0.02316246]
[1769538669745,0.0002247,88000.0,87989.0,0.19070753]
[1769538669951,0.0002247,88000.0,87980.0,0.04091676]
[1769538669952,0.0002247,88000.0,87990.0,0.21386999]
[1769538670550,0.0002247,88000.0,87992.0,0.19070753]
[1769538670551,0.0002517,88000.0,87992.0,0.19070753]
[1769538670744,0.0302517,88000.0,87992.0,0.19070753]
[1769538671420,0.22746475,88012.0,87980.0,0.04091676]
[1769538671421,0.02466834,88021.0,87999.0,0.04091676]
[1769538671689,0.0002206,88025.0,88003.0,0.02316246]
[1769538671922,0.0002206,88025.0,88005.0,0.19070753]
[1769538672149,0.03,88024.0,88005.0,0.19070753]
[1769538672369,0.0002206,88025.0,87990.0,0.33993591]
[1769538672370,0.03,88022.0,88006.0,0.02316246]
[1769538672578,0.03,88022.0,88009.0,0.19070753]
[1769538672783,0.03,88022.0,88011.0,0.19070753]
[1769538672993,0.03,88022.0,88012.0,0.021387]
[1769538673244,0.03,88022.0,88010.0,0.02316246]
[1769538673454,0.03,88021.0,88006.0,0.19070753]
[1769538674315,0.03,88021.0,88006.0,0.21386999]
[1769538674534,0.03,88020.0,88006.0,0.21386999]
[1769538674746,0.03,88020.0,87991.0,0.1168]
[1769538674961,0.03,88018.0,87997.0,0.19070753]
[1769538675215,0.03,88016.0,87997.0,0.19070753]
[1769538675422,0.05466834,88016.0,87997.0,0.19070753]
[1769538675646,0.05466834,88016.0,87997.0,0.21386999]
[1769538675867,0.19403504,88019.0,87998.0,0.03832668]
[1769538675868,0.05466834,88014.0,87998.0,0.03832668]
[1769538676293,0.05466834,88014.0,87998.0,0.22903421]
[1769538678701,0.05466834,88014.0,87998.0,0.06148914]
[1769538678912,0.05466834,88014.0,87999.0,0.19070753]
[1769538679120,0.03,88013.0,87999.0,0.21386999]
[1769538679322,0.03,88013.0,88001.0,0.19070753]
[1769538679632,0.03,88013.0,88001.0,0.21386999]
[1769538680194,0.03,88012.0,88001.0,0.21386999]
[1769538680396,0.03,88012.0,88003.0,0.19070753]
[1769538680981,0.19425564,88025.0,88003.0,0.19070753]
[1769538681186,0.19425564,88025.0,88000.0,0.04091676]
[1769538681187,0.03,88024.0,88005.0,0.19070753]
[1769538681371,0.03,88024.0,88009.0,0.19070753]
[1769538682959,0.03,88024.0,88009.0,0.21386999]
[1769538683163,0.03,88023.0,88009.0,0.19070753]
[1769538683574,0.03,88021.0,88009.0,0.19070753]
[1769538683783,0.03,88021.0,88006.0,0.02316243]
[1769538683994,0.03,88021.0,88006.0,0.22051431]
[1769538684212,0.03,88019.0,88006.0,0.02316243]
[1769538684420,0.21991429,88006.0,87983.0,0.18435035]
[1769538684636,0.03,88002.0,87983.0,0.18435035]
[1769538684853,0.02303537,88024.0,87996.0,0.18435035]
[1769538685065,0.02303537,88024.0,87994.0,0.04091676]
[1769538685066,0.0002206,88025.0,87999.0,0.02420733]
[1769538685275,0.0002206,88025.0,88003.0,0.02420733]
[1769538685490,0.0002206,88025.0,88006.0,0.18435035]
[1769538685691,0.0002206,88025.0,88008.0,0.20855768]
[1769538686249,0.0002206,88025.0,88010.0,0.18435035]
[1769538686423,0.0002206,88025.0,88012.0,0.18435035]
[1769538688287,0.0002206,88025.0,87995.0,0.18435035]
[1769538688288,0.03,88020.0,87995.0,0.18435035]
[1769538688488,0.03,88020.0,88000.0,0.22526711]
[1769538688489,0.03,88016.0,88000.0,0.22526711]
[1769538688695,0.03,88016.0,88000.0,0.18435035]
[1769538688907,0.05303537,88016.0,88000.0,0.20520612]
[1769538689105,0.03,88016.0,88000.0,0.20520612]
[1769538689349,0.03,88014.0,88000.0,0.20520612]
[1769538690988,0.18991429,88026.0,88002.0,0.18435035]
[1769538691192,0.03,88023.0,88003.0,0.02420733]
[1769538691390,0.03,88023.0,88006.0,0.18435035]
[1769538693461,0.03,88022.0,88006.0,0.18435035]
[1769538693641,0.05303537,88022.0,88006.0,0.18435035]
[1769538693884,0.03,88018.0,87998.0,0.18435035]
[1769538694090,0.02303537,88013.0,87999.0,0.04091676]
[1769538694264,0.03,88012.0,88000.0,0.18435035]
[1769538696574,0.33953002,88020.0,88002.0,0.18435035]
[1769538696783,0.02303537,88021.0,88004.0,0.18435035]
[1769538697007,0.02303537,88021.0,88006.0,0.18435035]
[1769538697300,0.02303537,88021.0,87993.0,0.02420733]
[1769538697301,0.02303537,88020.0,87993.0,0.02420733]
[1769538697473,0.11676,88032.0,88002.0,0.02420733]
[1769538697474,0.03,88023.0,88002.0,0.02420733]
[1769538697696,0.03,88023.0,88005.0,0.18435035]
[1769538697929,0.03,88023.0,88007.0,0.18435035]
[1769538698510,0.03,88022.0,88008.0,0.02085577]
[1769538698680,0.03,88022.0,88012.0,0.18435035]
[1769538699282,0.03,88022.0,87985.0,0.05682679]
[1769538699283,0.03,88022.0,88015.0,0.02420733]
[1769538699475,0.03,88022.0,88016.0,0.18435035]
[1769538699705,0.03,88021.0,88016.0,0.18435035]
[1769538700103,0.03,88021.0,88016.0,0.20855768]
[1769538700732,0.03,88020.0,88016.0,0.20855768]
[1769538701477,0.05679989,88030.0,88016.0,0.20855768]
[1769538701478,0.22717982,88036.0,88016.0,0.20855768]
[1769538701605,0.03,88024.0,88016.0,0.02085577]
[1769538701868,0.03,88020.0,88011.0,0.20855768]
[1769538702516,0.03,88016.0,87993.0,0.18435035]
[1769538702718,0.3407812,88034.0,87993.0,0.18435035]
[1769538702719,0.03,88001.0,87993.0,0.0002078]
[1769538703282,0.03,88001.0,87994.0,0.18435035]
[1769538703687,0.03,88000.0,87994.0,0.18435035]
[1769538703891,0.03,88000.0,87994.0,0.22943423]
[1769538704843,0.05681545,88005.0,87994.0,0.22943423]
[1769538705038,0.02303537,88012.0,87994.0,0.22943423]
[1769538705247,0.05681472,88006.0,87994.0,0.22943423]
[1769538705499,0.05681266,88009.0,87995.0,0.20565681]
[1769538705708,0.02303537,88011.0,87995.0,0.20565681]
[1769538705709,0.03,88007.0,87995.0,0.20565681]
[1769538705907,0.08681557,88005.0,87995.0,0.20565681]
[1769538706189,0.03,88005.0,87995.0,0.20565681]
[1769538706653,0.03,88005.0,87977.0,0.0002701]
[1769538706654,0.03,87989.0,87965.0,0.02420733]
[1769538706855,0.03,87989.0,87969.0,0.02420733]
[1769538707073,0.03,87989.0,87961.0,0.00461884]
[1769538707074,0.03,87989.0,87973.0,0.02420733]
[1769538707289,0.03,87989.0,87975.0,0.02420733]
[1769538707494,0.03,87989.0,87978.0,0.20855768]
[1769538707695,0.03,87988.0,87979.0,0.18435035]
[1769538707825,0.03,87988.0,87979.0,0.20855768]
[1769538708683,0.13603765,88021.0,87979.0,0.18435035]
[1769538708885,0.02303537,88003.0,87982.0,0.02420733]
[1769538709226,0.05681871,88000.0,87985.0,0.18435035]
[1769538709443,0.22726299,88004.0,87961.0,0.00536018]
[1769538709444,0.0002701,88018.0,87986.0,0.02420733]
[1769538709645,0.13979537,88015.0,87989.0,0.18435035]
[1769538709827,0.03,88007.0,87992.0,0.02420733]
[1769538710061,0.03,88005.0,87993.0,0.20855768]
[1769538711324,0.03,88003.0,87993.0,0.20855768]
[1769538712613,0.08681643,88003.0,87993.0,0.20855768]
[1769538712819,0.03,87999.0,87986.0,0.02420733]
[1769538713061,0.03,87999.0,87969.0,0.02420733]
[1769538713062,0.03,87996.0,87969.0,0.02420733]
[1769538713269,0.03,87996.0,87979.0,0.20855768]
[1769538713470,0.03,87996.0,87980.0,0.02420733]
[1769538713649,0.03,87996.0,87981.0,0.18435035]
[1769538713650,0.08682115,87996.0,87981.0,0.18435035]
[1769538713846,0.03,87994.0,87981.0,0.18435035]
[1769538714209,0.03,87992.0,87975.0,0.20855768]
[1769538714429,0.03,87992.0,87975.0,0.18435035]
[1769538714651,0.03,87992.0,87952.0,0.05684855]
[1769538714652,0.33953002,87985.0,87959.0,0.1882951]
[1769538714823,0.34087583,88009.0,87959.0,0.1882951]
[1769538714824,0.33953002,87971.0,87959.0,0.1882951]
[1769538715022,0.03,87970.0,87956.0,0.1882951]
[1769538715445,0.03,87970.0,87954.0,0.02420065]
[1769538715646,0.03,87970.0,87962.0,0.1882951]
[1769538716047,0.03,87969.0,87954.0,0.02420065]
[1769538716225,0.03,87969.0,87955.0,0.1882951]
[1769538716979,0.03,87972.0,87955.0,0.1882951]
[1769538718005,0.03,87963.0,87947.0,0.18799563]
[1769538718744,0.03,87963.0,87949.0,0.1882951]
[1769538718954,0.03,87972.0,87952.0,0.02420065]
[1769538719153,0.03,87972.0,87956.0,0.02420065]
[1769538719356,0.03,87972.0,87951.0,0.1882951]
[1769538719555,0.03,87972.0,87953.0,0.1882951]
[1769538719780,0.03,87972.0,87955.0,0.1882951]
[1769538720000,0.03,87974.0,87958.0,0.02420065]
[1769538720210,0.03,87974.0,87959.0,0.1882951]
[1769538721030,0.03,87975.0,87959.0,0.1882951]
[1769538721389,0.03,87971.0,87959.0,0.1882951]
[1769538722489,0.03,87970.0,87959.0,0.1882951]
[1769538723532,0.03,87969.0,87959.0,0.1882951]
[1769538724302,0.03,87969.0,87961.0,0.1882951]
[1769538724515,0.05683307,87977.0,87963.0,0.1882951]
[1769538724900,0.05683379,87976.0,87963.0,0.1882951]
[1769538725115,0.02409576,87978.0,87963.0,0.1882951]
[1769538725547,0.03,87977.0,87963.0,0.1882951]
[1769538726478,0.03,87977.0,87963.0,0.1782951]
[1769538727319,0.03,87977.0,87963.0,0.1680501]
[1769538727551,0.03,87977.0,87963.0,0.16783536]
[1769538728399,0.03,87973.0,87963.0,0.16783536]
[1769538728606,0.34093329,87994.0,87963.0,0.16783536]
[1769538728830,0.34093329,87994.0,87945.0,0.0002701]
[1769538728831,0.18651738,87980.0,87945.0,0.0002701]
[1769538729052,0.03,87959.0,87947.0,0.02420065]
[1769538729259,0.04091676,87985.0,87947.0,0.01860065]
[1769538729260,0.18651738,87968.0,87947.0,0.01860065]
[1769538729467,0.05684223,87963.0,87948.0,0.1882951]
[1769538729674,0.05684238,87963.0,87948.0,0.1882951]
[1769538730121,0.03,87961.0,87948.0,0.1882951]
[1769538730368,0.02409576,87960.0,87945.0,0.0002701]
[1769538730610,0.05409576,87959.0,87945.0,0.0002701]
[1769538730820,0.07815707,87959.0,87945.0,0.0002701]
[1769538731041,0.07815707,87959.0,87946.0,0.1882951]
[1769538731259,0.03,87959.0,87946.0,0.1882951]
[1769538731506,0.05260474,87967.0,87945.0,0.0002701]
[1769538731507,0.03,87958.0,87949.0,0.02420065]
[1769538731740,0.02409576,87974.0,87953.0,0.02420065]
[1769538732008,0.02409576,87974.0,87954.0,0.20249575]
[1769538732233,0.02409576,87974.0,87946.0,0.1882951]
[1769538732453,0.1168,87976.0,87946.0,0.1882951]
[1769538732454,0.03,87964.0,87946.0,0.1882951]
[1769538732685,0.03,87962.0,87946.0,0.1882951]
[1769538732909,0.03,87962.0,87948.0,0.1882951]
[1769538733121,0.03,87962.0,87950.0,0.1882951]
[1769538733587,0.22732412,87981.0,87955.0,0.02420065]
[1769538733588,0.02409576,87978.0,87955.0,0.02420065]
[1769538733736,0.05409576,87975.0,87956.0,0.188096]
[1769538733962,0.03,87973.0,87958.0,0.1882951]
[1769538734162,0.03,87971.0,87947.0,0.02420065]
[1769538734360,0.03,87971.0,87945.0,0.0002701]
[1769538734361,0.02409576,87966.0,87948.0,0.1882951]
[1769538734561,0.05409576,87963.0,87948.0,0.1882951]
[1769538734765,0.11093801,87963.0,87948.0,0.1882951]
[1769538735351,0.35386149,87970.0,87945.0,0.0002701]
[1769538735352,0.03,87955.0,87945.0,0.0002701]
[1769538735825,0.03842723,87970.0,87948.0,0.1882951]
[1769538736038,0.11336362,87969.0,87950.0,0.21249575]
[1769538736250,0.01433147,87970.0,87945.0,0.0002701]
[1769538736251,0.0568445,87960.0,87945.0,0.1885652]
[1769538736479,0.03,87959.0,87945.0,0.1885652]
[1769538736693,0.08093767,87964.0,87945.0,0.1885652]
[1769538736694,0.03,87957.0,87945.0,0.1885652]
[1769538737157,0.03,87954.0,87945.0,0.18842199]
[1769538737863,0.03,87952.0,87945.0,0.18842199]
[1769538738107,0.03,87952.0,87945.0,0.00012689]
[1769538738888,0.02409576,87955.0,87952.0,0.005]
[1769538739085,0.02409576,87955.0,87939.0,0.18524533]
[1769538739489,0.13603765,87976.0,87929.0,0.00736895]
[1769538739490,0.03,87947.0,87929.0,0.1882951]
[1769538739911,0.03,87947.0,87929.0,0.21249575]
[1769538740120,0.03,87947.0,87929.0,0.21260255]
[1769538740323,0.05685315,87946.0,87929.0,0.21260255]
[1769538740527,0.03,87939.0,87929.0,0.1884019]
[1769538740923,0.25146667,87963.0,87933.0,0.1882951]
[1769538741126,0.05684748,87955.0,87936.0,0.02420065]
[1769538741329,0.1168,87969.0,87936.0,0.02420065]
[1769538741330,0.05684928,87952.0,87937.0,0.1882951]
[1769538741548,0.03,87950.0,87933.0,0.1884019]
[1769538741747,0.03,87948.0,87933.0,0.1884019]
[1769538742165,0.22677011,87988.0,87927.0,0.1168]
[1769538742166,0.03,87944.0,87927.0,0.1168]
[1769538742370,0.05409576,87944.0,87928.0,0.1882951]
[1769538742885,0.14053532,87944.0,87928.0,0.1882951]
[1769538743085,0.05409576,87944.0,87928.0,0.1882951]
[1769538743336,0.03,87942.0,87928.0,0.1882951]
[1769538743994,0.05685247,87947.0,87928.0,0.1882951]
[1769538744201,0.11356947,87946.0,87930.0,0.19311482]
[1769538744407,0.03,87944.0,87930.0,0.19311482]
[1769538744598,0.05685247,87947.0,87930.0,0.19311482]
[1769538744599,0.03,87942.0,87930.0,0.19311482]
[1769538744892,0.03,87942.0,87930.0,0.21752958]
[1769538745314,0.03,87942.0,87931.0,0.02441476]
[1769538745578,0.45314683,87941.0,87931.0,0.02441476]
[1769538745782,0.45314683,87941.0,87918.0,0.0003151]
[1769538745783,0.03,87936.0,87924.0,0.02441476]
[1769538746003,0.03,87936.0,87924.0,0.20086571]
[1769538746438,0.03,87934.0,87924.0,0.20086571]
[1769538746877,0.03,87932.0,87924.0,0.20086571]
[1769538747091,0.03,87932.0,87924.0,0.17645095]
[1769538747274,1.13680727,87966.0,87918.0,0.0003151]
[1769538747275,0.03,87930.0,87918.0,0.0003151]
[1769538747937,0.03,87930.0,87922.0,0.0261716]
[1769538748359,0.03,87929.0,87922.0,0.0261716]
[1769538749389,0.03,87933.0,87929.0,7.813e-05]
[1769538749626,0.08686211,87933.0,87922.0,0.02052105]
[1769538749834,0.03,87931.0,87918.0,0.17676605]
[1769538749977,0.03,87931.0,87918.0,0.20118081]
[1769538750184,0.23185932,87935.0,87931.0,7.813e-05]
[1769538750380,0.28848542,87934.0,87931.0,7.813e-05]
[1769538750590,0.03,87934.0,87918.0,0.20118081]
[1769538751244,0.08686087,87934.0,87919.0,0.02441476]
[1769538751450,0.03,87934.0,87919.0,0.20086571]
[1769538751737,0.08686096,87934.0,87919.0,0.20086571]
[1769538751920,0.03,87931.0,87919.0,0.20086571]
[1769538753335,0.03,87930.0,87919.0,0.20086571]
[1769538753732,0.05686151,87933.0,87930.0,0.0025]
[1769538753938,0.05686151,87933.0,87919.0,0.20086571]
[1769538753939,0.05686151,87933.0,87919.0,0.19768904]
[1769538754321,0.08686154,87933.0,87919.0,0.19768904]
[1769538754512,0.08686154,87933.0,87919.0,0.18768904]
[1769538754839,0.03,87931.0,87919.0,0.18768904]
[1769538755711,0.03,87932.0,87919.0,0.18768904]
[1769538756033,0.0868622,87932.0,87919.0,0.18768904]
[1769538756236,0.03,87932.0,87919.0,0.18768904]
[1769538756619,0.0868615,87933.0,87919.0,0.18768904]
[1769538756823,0.03,87933.0,87919.0,0.18768904]
[1769538757766,0.03,87932.0,87919.0,0.18768904]
[1769538758653,0.22739657,87953.0,87922.0,0.02515766]
[1769538758862,0.01783087,87957.0,87913.0,0.22057582]
[1769538758863,0.03,87951.0,87926.0,0.02515766]
[1769538759037,0.03,87949.0,87929.0,0.17645095]
[1769538759414,0.03,87947.0,87933.0,0.20160861]
[1769538759655,0.03,87945.0,87933.0,0.20160861]
[1769538759860,0.03,87943.0,87933.0,0.20160861]
[1769538760080,0.03,87943.0,87935.0,0.17645095]
[1769538760292,0.03,87943.0,87937.0,0.20160861]
[1769538760535,0.36339851,87966.0,87938.0,0.02515766]
[1769538760746,0.05684524,87959.0,87942.0,0.02515766]
[1769538760952,0.20035222,87958.0,87942.0,0.19972323]
[1769538761105,0.03,87956.0,87942.0,0.19720939]
[1769538761304,0.03,87954.0,87942.0,0.19563824]
[1769538761525,0.09081251,87956.0,87942.0,0.17645095]
[1769538761526,0.03,87950.0,87942.0,0.17645095]
[1769538761713,0.13603765,87956.0,87920.0,0.34026747]
[1769538761714,0.05715613,87965.0,87924.0,0.20086571]
[1769538761930,0.05715613,87965.0,87926.0,0.02441476]
[1769538761931,0.04618863,87964.0,87926.0,0.02441476]
[1769538762130,0.04618863,87964.0,87929.0,0.17645095]
[1769538762381,0.04618863,87964.0,87932.0,0.04091676]
[1769538762530,0.03,87963.0,87934.0,0.02441476]
[1769538762847,0.03,87963.0,87938.0,0.02441476]
[1769538763061,0.07175409,87963.0,87939.0,0.17645095]
[1769538763250,0.07175409,87963.0,87942.0,0.02441476]
[1769538763448,0.07175409,87963.0,87944.0,0.02441476]
[1769538763666,0.03,87961.0,87946.0,0.02441476]
[1769538764105,0.08684346,87961.0,87946.0,0.02441476]
[1769538765094,0.03,87957.0,87939.0,0.20086571]
[1769538765293,0.03,87954.0,87939.0,0.20086571]
[1769538765474,0.03,87952.0,87939.0,0.20086571]
[1769538765887,0.07892268,87952.0,87939.0,0.20086571]
[1769538766167,0.03,87948.0,87926.0,0.02441476]
[1769538766443,0.03,87948.0,87930.0,0.02441476]
[1769538766677,0.03,87948.0,87931.0,0.17645095]
[1769538766883,0.03,87948.0,87932.0,0.02441476]
[1769538767070,0.11461434,87948.0,87932.0,0.02441476]
[1769538767206,0.05776217,87948.0,87933.0,0.17645095]
[1769538768208,0.01776217,87948.0,87926.0,0.02441476]
[1769538768410,0.01776217,87948.0,87929.0,0.17645095]
[1769538768542,0.01776217,87948.0,87929.0,0.20086571]
[1769538768743,0.01776217,87948.0,87929.0,0.19403571]
[1769538768945,0.07461407,87948.0,87929.0,0.19062071]
[1769538769145,0.07461407,87948.0,87929.0,0.18720571]
[1769538769350,0.03,87946.0,87929.0,0.18037571]
[1769538769582,0.03,87942.0,87925.0,0.17645095]
[1769538769787,0.03,87942.0,87927.0,0.17645095]
[1769538769949,0.03,87942.0,87927.0,0.16962095]
[1769538770153,0.03,87940.0,87927.0,0.16962095]
[1769538770359,0.03,87940.0,87927.0,0.16279095]
[1769538770563,0.03,87940.0,87921.0,0.19523313]
[1769538770564,0.03,87932.0,87921.0,0.19523313]
[1769538770916,0.22744145,87935.0,87921.0,0.19523313]
[1769538770917,0.03,87930.0,87921.0,0.16962095]
[1769538771148,0.03,87926.0,87915.0,0.01878218]
[1769538771455,0.03,87926.0,87915.0,0.19523313]
[1769538772198,0.03,87925.0,87915.0,0.17645095]
[1769538772395,0.03,87920.0,87915.0,0.17645095]
[1769538772737,0.03,87920.0,87909.0,0.01878218]
[1769538772738,0.03,87920.0,87909.0,0.19523313]
[1769538773358,0.03,87920.0,87909.0,0.01878218]
[1769538773583,0.03,87919.0,87912.0,0.17685095]
[1769538773945,0.03,87919.0,87912.0,0.19641426]
[1769538774145,0.03,87919.0,87912.0,0.17685095]
[1769538774594,0.03,87929.0,87912.0,0.19563313]
[1769538774974,0.18496033,87952.0,87912.0,0.0004]
[1769538774975,0.03,87922.0,87912.0,0.0004]
[1769538775637,0.03,87922.0,87913.0,0.19257986]
[1769538776196,0.03,87921.0,87913.0,0.19257986]
[1769538777185,0.03,87920.0,87913.0,0.19257986]
[1769538777628,0.05687115,87919.0,87912.0,0.0004]
[1769538777994,0.05309973,87913.0,87912.0,0.0004]
[1769538778273,0.03,87913.0,87912.0,0.0004]
[1769538778470,0.03,87913.0,87901.0,0.19257986]
[1769538779029,0.03,87916.0,87901.0,0.19257986]
[1769538780027,0.03,87915.0,87901.0,0.19257986]
[1769538780225,0.17920252,87927.0,87904.0,0.02440544]
[1769538780467,0.05686912,87922.0,87904.0,0.2169853]
[1769538780642,0.17043853,87921.0,87904.0,0.2169853]
[1769538780841,0.11356922,87920.0,87904.0,0.2169853]
[1769538781228,0.08687156,87918.0,87904.0,0.2169853]
[1769538781432,0.03,87918.0,87904.0,0.2169853]
[1769538782194,0.03,87918.0,87894.0,0.11724]
[1769538782195,0.02309973,87933.0,87908.0,0.02440544]
[1769538782373,0.05686373,87930.0,87911.0,0.19239297]
[1769538782562,0.11354325,87929.0,87912.0,0.2169853]
[1769538782779,0.20230225,87933.0,87912.0,0.2169853]
[1769538782780,0.11354325,87928.0,87912.0,0.21548842]
[1769538783025,0.11354325,87927.0,87912.0,0.21417859]
[1769538783181,0.14354325,87926.0,87912.0,0.21268163]
[1769538783373,0.03,87926.0,87912.0,0.21230739]
[1769538783991,0.0868661,87926.0,87912.0,0.21230739]
[1769538784173,0.03,87926.0,87912.0,0.21230739]
[1769538784379,0.03,87925.0,87912.0,0.21230739]
[1769538785054,0.08686726,87925.0,87912.0,0.21230739]
[1769538785301,0.05686733,87924.0,87912.0,0.21230739]
[1769538785507,0.03,87923.0,87912.0,0.21230739]
[1769538785642,0.02309973,87929.0,87894.0,0.11724]
[1769538785643,0.03,87919.0,87900.0,0.19257986]
[1769538785845,0.03,87917.0,87900.0,0.19257986]
[1769538786067,0.03,87917.0,87903.0,0.02440544]
[1769538786392,0.03,87917.0,87904.0,0.2169853]
[1769538786735,0.03,87916.0,87904.0,0.19257986]
[1769538786939,0.02309973,87931.0,87909.0,0.19257986]
[1769538787149,0.05686588,87927.0,87912.0,0.02440544]
[1769538787375,0.22744109,87935.0,87899.0,0.0003151]
[1769538787376,0.23607173,87922.0,87901.0,0.02440544]
[1769538787562,0.23607173,87922.0,87902.0,0.19257986]
[1769538787563,0.05805671,87921.0,87902.0,0.19257986]
[1769538787771,0.03,87918.0,87902.0,0.2169853]
[1769538788482,0.03,87918.0,87904.0,0.19257986]
[1769538788921,0.08687147,87918.0,87904.0,0.19257986]
[1769538789127,0.05309973,87918.0,87904.0,0.19257986]
[1769538789804,0.03,87917.0,87904.0,0.19257986]
[1769538790910,0.03,87917.0,87899.0,0.0003151]
[1769538790911,0.03,87916.0,87906.0,0.19257986]
[1769538791833,0.2591704,87923.0,87906.0,0.19257986]
[1769538792045,0.03,87933.0,87911.0,0.19225633]
[1769538792297,0.08686318,87931.0,87913.0,0.18884104]
[1769538792499,0.03,87929.0,87913.0,0.18412996]